OrganisationURI,OrganisationLabel,OrganisationalUnit,TransactionNumber,Invoice Ref.,BeneficiaryName,Expense Type,Purpose,PaymentDate,Amount
http://statistics.data.gov.uk/id/local-authority-district/23UB,Cheltenham Borough Council,Recreation Centre Repairs & Maintenance,14038616,176288,A & E Fire Equipment Limited,R2083-REC111,R&M of Build - Routine,31/07/2015,883.72
http://statistics.data.gov.uk/id/local-authority-district/23UB,Cheltenham Borough Council,Fire Protection,14038587,176782,A & E Fire Equipment Limited,C1107-CAH015,Building Works,31/07/2015,505.02
http://statistics.data.gov.uk/id/local-authority-district/23UB,Cheltenham Borough Council,Fire Protection,14038281,176231,A & E Fire Equipment Limited,C1107-CAH015,Building Works,17/07/2015,644.00
http://statistics.data.gov.uk/id/local-authority-district/23UB,Cheltenham Borough Council,"Cemetery, Crematorium and Churchyards",14037914,2122,A R Twigg & Sons Limited,R4000-CCM001,Equipment Purchase,03/07/2015,2995.00
http://statistics.data.gov.uk/id/local-authority-district/23UB,Cheltenham Borough Council,Homelessness,14037958,Loan Deposit (Adams Estate Agents),Adams Estate Agents,R6280-HOM001,Grants,03/07/2015,600.00
http://statistics.data.gov.uk/id/local-authority-district/23UB,Cheltenham Borough Council,Treasury Management,14038208,SPIO3913,AJB Management Limited T/A Orbit UK,R4403-COR006,Bank Charges,17/07/2015,650.00
http://statistics.data.gov.uk/id/local-authority-district/23UB,Cheltenham Borough Council,Community Welfare Grants,14038431,100715,All About Fun UK.com,R4001-GBD001,Tools & Equipment - Hire,24/07/2015,1200.00
http://statistics.data.gov.uk/id/local-authority-district/23UB,Cheltenham Borough Council,Soil Stacks,14038571,29732,Allhands Limited T/A Harrold Jones Services,C1107-CAH024,Building Works,24/07/2015,1082.28
http://statistics.data.gov.uk/id/local-authority-district/23UB,Cheltenham Borough Council,Waste & Recycling - Marketing,14037909,62970,Alpha Colour Printers Limited,R4317-RYC007,Non Staff Advertising,03/07/2015,2264.00
http://statistics.data.gov.uk/id/local-authority-district/23UB,Cheltenham Borough Council,Housing Benefit Administration,14038302,63040,Alpha Colour Printers Limited,R4300-HBA001,Printing - Services,17/07/2015,1142.00
http://statistics.data.gov.uk/id/local-authority-district/23UB,Cheltenham Borough Council,Tenant Insurance Control,14038452,premium declaration 20.07.15,AON Limited - Tenant Insurance,R9925-HRA901,Tenant Insurance Scheme Payments,24/07/2015,7754.90
http://statistics.data.gov.uk/id/local-authority-district/23UB,Cheltenham Borough Council,Development costs - Garages Sites 2,14038890,CBHL/2030,Aspects Services (UK) Limited (ASL),C1107-CAH052,Building Works,31/07/2015,11156.25
http://statistics.data.gov.uk/id/local-authority-district/23UB,Cheltenham Borough Council,Joint Core Strategy,14037906,15011279,Atkins Limited (Transport Planning),R4400-PLP101,Services - Professional Fees,03/07/2015,8550.00
http://statistics.data.gov.uk/id/local-authority-district/23UB,Cheltenham Borough Council,Joint Core Strategy,14038061,inv301931,Attwaters Jameson Hill Solicitors,R4400-PLP101,Services - Professional Fees,17/07/2015,17100.00
http://statistics.data.gov.uk/id/local-authority-district/23UB,Cheltenham Borough Council,Joint Core Strategy,14038061,inv301931,Attwaters Jameson Hill Solicitors,R4400-PLP101,Services - Professional Fees,17/07/2015,951.54
http://statistics.data.gov.uk/id/local-authority-district/23UB,Cheltenham Borough Council,Supervision and Management,14038376,8757,AVM International Limited,R2202-HRA110,Property Rental,17/07/2015,579.50
http://statistics.data.gov.uk/id/local-authority-district/23UB,Cheltenham Borough Council,Building Control - Fee Earning Work,14038758,C63,B R G Interim Solutions Limited,R1100-BUC001,Agency Staff,31/07/2015,1535.05
http://statistics.data.gov.uk/id/local-authority-district/23UB,Cheltenham Borough Council,Building Control - Fee Earning Work,14038108,C55,B R G Interim Solutions Limited,R1100-BUC001,Agency Staff,10/07/2015,1708.10
http://statistics.data.gov.uk/id/local-authority-district/23UB,Cheltenham Borough Council,Building Control - Fee Earning Work,14038759,C64,B R G Interim Solutions Limited,R1100-BUC001,Agency Staff,31/07/2015,1829.05
http://statistics.data.gov.uk/id/local-authority-district/23UB,Cheltenham Borough Council,Building Control - Fee Earning Work,14038201,C58,B R G Interim Solutions Limited,R1100-BUC001,Agency Staff,24/07/2015,1833.89
http://statistics.data.gov.uk/id/local-authority-district/23UB,Cheltenham Borough Council,Building Control - Fee Earning Work,14037933,c56,B R G Interim Solutions Limited,R1100-BUC001,Agency Staff,03/07/2015,1842.20
http://statistics.data.gov.uk/id/local-authority-district/23UB,Cheltenham Borough Council,Building Control - Fee Earning Work,14038527,C62,B R G Interim Solutions Limited,R1100-BUC001,Agency Staff,31/07/2015,1873.49
http://statistics.data.gov.uk/id/local-authority-district/23UB,Cheltenham Borough Council,Building Control - Fee Earning Work,14038107,C57,B R G Interim Solutions Limited,R1100-BUC001,Agency Staff,10/07/2015,1875.80
http://statistics.data.gov.uk/id/local-authority-district/23UB,Cheltenham Borough Council,Building Control - Fee Earning Work,14038202,C59,B R G Interim Solutions Limited,R1100-BUC001,Agency Staff,24/07/2015,1889.21
http://statistics.data.gov.uk/id/local-authority-district/23UB,Cheltenham Borough Council,Building Control - Fee Earning Work,14038525,C61,B R G Interim Solutions Limited,R1100-BUC001,Agency Staff,31/07/2015,1925.45
http://statistics.data.gov.uk/id/local-authority-district/23UB,Cheltenham Borough Council,Building Control - Fee Earning Work,14038526,C60,B R G Interim Solutions Limited,R1100-BUC001,Agency Staff,31/07/2015,1313.65
http://statistics.data.gov.uk/id/local-authority-district/23UB,Cheltenham Borough Council,Reception/Customer Services,14036670,98185997,Bentley Systems International Limited,R4539-SUP008,IT - Consultancy,10/07/2015,5100.00
http://statistics.data.gov.uk/id/local-authority-district/23UB,Cheltenham Borough Council,Cheltenham Business Partnership,14038311,153006-021,Blackadder Media Limited,R4411-HLD130,Consultancy Fees,17/07/2015,4200.00
http://statistics.data.gov.uk/id/local-authority-district/23UB,Cheltenham Borough Council,Joint Core Strategy,14038206,14326,Border Office Supplies and Systems Limited,R4400-PLP101,Services - Professional Fees,17/07/2015,549.18
http://statistics.data.gov.uk/id/local-authority-district/23UB,Cheltenham Borough Council,Sports & Open Spaces Operations,14036437,10623188,Breedon Aggregates England Limited T/A Huntsmans Quarries,R2071-OPS002,Open Spaces and Grassed Areas,17/07/2015,1405.80
http://statistics.data.gov.uk/id/local-authority-district/23UB,Cheltenham Borough Council,Supervision and Management,14037977,85 00 03 57 58 62 080615,British Gas Business (Cheltenham),R2101-HRA110,Gas,03/07/2015,2377.15
http://statistics.data.gov.uk/id/local-authority-district/23UB,Cheltenham Borough Council,Environmental Works (Tenant Selection),14038261,1426,Brown Bull,C1107-CAH029,Building Works,17/07/2015,550.00
http://statistics.data.gov.uk/id/local-authority-district/23UB,Cheltenham Borough Council,Neighbourhood works 2012/13,14038262,1427,Brown Bull,C1107-CAH005,Building Works,17/07/2015,644.62
http://statistics.data.gov.uk/id/local-authority-district/23UB,Cheltenham Borough Council,Supervision and Management,14037713,Q007 7W,BT (Business Billing - Durham),R4515-HRA110,Comms - Telephone Call Charges,03/07/2015,1080.52
http://statistics.data.gov.uk/id/local-authority-district/23UB,Cheltenham Borough Council,Supervision and Management,14038013,Q007 BE,BT (Business Billing - Durham),R4505-HRA110,Comms - Telephone Call charges (Expense claims),31/07/2015,1479.15
http://statistics.data.gov.uk/id/local-authority-district/23UB,Cheltenham Borough Council,Supervision and Management,14036194,Q006 47,BT (Business Billing - Durham),R4507-HRA110,Comms - Mobile Telephones,03/07/2015,1731.52
http://statistics.data.gov.uk/id/local-authority-district/23UB,Cheltenham Borough Council,Sports & Open Spaces Operations,14038429,7125/03847406,Buck and Hickman,R4003-OPS002,Tools & Equipment - R & M,24/07/2015,644.63
http://statistics.data.gov.uk/id/local-authority-district/23UB,Cheltenham Borough Council,Environmental Health General,14038238,112282,Buckingham Futures Limited,R1100-REG001,Agency Staff,24/07/2015,1256.40
http://statistics.data.gov.uk/id/local-authority-district/23UB,Cheltenham Borough Council,Environmental Health General,14038227,112553,Buckingham Futures Limited,R1652-REG001,Training Fees (External),24/07/2015,1256.40
http://statistics.data.gov.uk/id/local-authority-district/23UB,Cheltenham Borough Council,Cheltenham Municipal Offices,14038424,08/227795,Bunzl Cleaning and Hygiene Supplies,R4009-ADB101,Materials - Cleaning Materials,24/07/2015,613.91
http://statistics.data.gov.uk/id/local-authority-district/23UB,Cheltenham Borough Council,"Cemetery, Crematorium and Churchyards",14037744,4249,C Mawdsley t/a Arbor Tree Care,R2075-CCM001,Grounds Maintenance - Contract,03/07/2015,877.00
http://statistics.data.gov.uk/id/local-authority-district/23UB,Cheltenham Borough Council,Shopmobility,14038062,33,C&P Trading T/A Mobility Corner,R4000-PUT102,Equipment Purchase,17/07/2015,795.00
http://statistics.data.gov.uk/id/local-authority-district/23UB,Cheltenham Borough Council,Joint Core Strategy,14038435,SP7049,Cambridge Econometrics Limited,R4400-PLP101,Services - Professional Fees,24/07/2015,5789.00
http://statistics.data.gov.uk/id/local-authority-district/23UB,Cheltenham Borough Council,"Cemetery, Crematorium and Churchyards",14038308,28779,CDK Castings Limited T/A Arkell & Hurcombe,R4011-CCM001,Goods For Resale,17/07/2015,560.00
http://statistics.data.gov.uk/id/local-authority-district/23UB,Cheltenham Borough Council,Community Welfare Grants,14038598,Pos Acts CK Youth Club,Charlton Kings Youth Club,R6280-GBD001,Grants,31/07/2015,3649.00
http://statistics.data.gov.uk/id/local-authority-district/23UB,Cheltenham Borough Council,External Improvements,14037907,9193/1369,Cheltenham & Gloucester Cladding,C1107-CAH003,Building Works,17/07/2015,1905.00
http://statistics.data.gov.uk/id/local-authority-district/23UB,Cheltenham Borough Council,Community Welfare Grants,14038489,Com Pride- Poetry,Cheltenham Poetry Festival C.I.C.,R6280-GBD001,Grants,24/07/2015,1000.00
http://statistics.data.gov.uk/id/local-authority-district/23UB,Cheltenham Borough Council,Community Welfare Grants,14038600,Pos Acts Sea Cadets,Cheltenham Sea Cadets,R6280-GBD001,Grants,31/07/2015,1000.00
http://statistics.data.gov.uk/id/local-authority-district/23UB,Cheltenham Borough Council,Community Development,14038313,2012/72,Cheltenham West End Partnership Limited,R4401-COM001,Services - Fees and Charges,17/07/2015,10990.00
http://statistics.data.gov.uk/id/local-authority-district/23UB,Cheltenham Borough Council,Revenues & Benefits Overheads,14038102,M/RB030215,Civica UK Limited,R4534-LTC101,IT - Maint Agreements,17/07/2015,1390.59
http://statistics.data.gov.uk/id/local-authority-district/23UB,Cheltenham Borough Council,Council Tax Collection,14038410,c/bc135457,Civica UK Limited (Burston Road),R4401-LTC001,Services - Fees and Charges,24/07/2015,1360.00
http://statistics.data.gov.uk/id/local-authority-district/23UB,Cheltenham Borough Council,Planning Policy,14037988,11505,Claire Cullen-Jones,R4400-PLP001,Services - Professional Fees,03/07/2015,1104.40
http://statistics.data.gov.uk/id/local-authority-district/23UB,Cheltenham Borough Council,Cheltenham Municipal Offices,14037953,548535,Comensura Limited,R1100-ADB101,Agency Staff,03/07/2015,535.82
http://statistics.data.gov.uk/id/local-authority-district/23UB,Cheltenham Borough Council,"Cemetery, Crematorium and Churchyards",14038237,548738,Comensura Limited,R1100-CCM001,Agency Staff,17/07/2015,4081.75
http://statistics.data.gov.uk/id/local-authority-district/23UB,Cheltenham Borough Council,"Cemetery, Crematorium and Churchyards",14038230,548941,Comensura Limited,R1100-CCM001,Agency Staff,17/07/2015,2113.24
http://statistics.data.gov.uk/id/local-authority-district/23UB,Cheltenham Borough Council,Sports & Open Spaces Repairs & Maintenance,14038047,C25790,Cotswold Drain Service Limited,R2043-OPS122,R & M of Build Drain Cleaning,10/07/2015,2018.65
http://statistics.data.gov.uk/id/local-authority-district/23UB,Cheltenham Borough Council,Community Welfare Grants,14038295,CML 63072015,Cotswold Markets Limited,R4001-GBD001,Tools & Equipment - Hire,17/07/2015,1425.00
http://statistics.data.gov.uk/id/local-authority-district/23UB,Cheltenham Borough Council,Land & Property presale costs,14038358,CA1061-4,Curtins Consulting Limited,C1005-CAP401,Surveyors Fees,17/07/2015,5767.00
http://statistics.data.gov.uk/id/local-authority-district/23UB,Cheltenham Borough Council,Land & Property presale costs,14038170,EB1724-1,Curtins Consulting Limited,C1005-CAP401,Surveyors Fees,17/07/2015,1350.00
http://statistics.data.gov.uk/id/local-authority-district/23UB,Cheltenham Borough Council,External Improvements,14038265,BR1473-1 BR,Curtins Consulting Limited,C1107-CAH003,Building Works,17/07/2015,1666.50
http://statistics.data.gov.uk/id/local-authority-district/23UB,Cheltenham Borough Council,Soil Stacks,14038897,BR1474-1 BR,Curtins Consulting Limited,C1107-CAH024,Building Works,31/07/2015,1884.50
http://statistics.data.gov.uk/id/local-authority-district/23UB,Cheltenham Borough Council,Land & Property presale costs,14038231,CA1061A-1 CA,Curtins Consulting Limited,C1005-CAP401,Surveyors Fees,17/07/2015,700.00
http://statistics.data.gov.uk/id/local-authority-district/23UB,Cheltenham Borough Council,Community Development,14038327,8,Deborah Jeremiah,R6280-COM001,Grants,17/07/2015,1000.00
http://statistics.data.gov.uk/id/local-authority-district/23UB,Cheltenham Borough Council,Community Development,14038329,9,Deborah Jeremiah,R6280-COM001,Grants,17/07/2015,1026.00
http://statistics.data.gov.uk/id/local-authority-district/23UB,Cheltenham Borough Council,Community Development,14038330,10,Deborah Jeremiah,R6280-COM001,Grants,17/07/2015,1576.00
http://statistics.data.gov.uk/id/local-authority-district/23UB,Cheltenham Borough Council,Car Park Investment,14038163,4231,DPP One Limited,C1005-CAP206,Surveyors Fees,24/07/2015,5000.00
http://statistics.data.gov.uk/id/local-authority-district/23UB,Cheltenham Borough Council,"Cemetery, Crematorium and Churchyards",14038404,60715,Dr Young & Partners,R4401-CCM001,Services - Fees and Charges,24/07/2015,10538.00
http://statistics.data.gov.uk/id/local-authority-district/23UB,Cheltenham Borough Council,"Cemetery, Crematorium and Churchyards",14038334,162136,E.G. Carter & Co. Limited,R2004-CCM001,R & M of Build Programmed,17/07/2015,27351.48
http://statistics.data.gov.uk/id/local-authority-district/23UB,Cheltenham Borough Council,Cheltenham Business Partnership,14038395,CBP01-10006,E247,R4400-HLD130,Services - Professional Fees,24/07/2015,950.00
http://statistics.data.gov.uk/id/local-authority-district/23UB,Cheltenham Borough Council,Recreation Centre Repairs & Maintenance,14038286,301267/6/2015,Ener-G Combined Power (South) Limited,R2100-REC111,Electricity,17/07/2015,4587.56
http://statistics.data.gov.uk/id/local-authority-district/23UB,Cheltenham Borough Council,Joint Core Strategy,14038285,gct247-14,Enfusion Limited,R4400-PLP101,Services - Professional Fees,24/07/2015,1390.00
http://statistics.data.gov.uk/id/local-authority-district/23UB,Cheltenham Borough Council,Neighbourhood works 2012/13,14038246,WM006173,English Landscapes Limited t/a The Landscape Group,C1107-CAH005,Building Works,17/07/2015,64451.05
http://statistics.data.gov.uk/id/local-authority-district/23UB,Cheltenham Borough Council,Asbestos Management,14038451,4510,Environmental Management Solutions Limited,C1107-CAH012,Building Works,24/07/2015,12680.00
http://statistics.data.gov.uk/id/local-authority-district/23UB,Cheltenham Borough Council,Asbestos Management,14038578,4511,Environmental Management Solutions Limited,C1107-CAH012,Building Works,31/07/2015,12793.50
http://statistics.data.gov.uk/id/local-authority-district/23UB,Cheltenham Borough Council,Recreation Centre Repairs & Maintenance,14038287,6700,F T Leisure Limited,R2004-REC111,R & M of Build Programmed,17/07/2015,16342.79
http://statistics.data.gov.uk/id/local-authority-district/23UB,Cheltenham Borough Council,Pest Control,14037730,443906,Facelift (GB) Limited,R4001-REG018,Tools & Equipment - Hire,03/07/2015,1000.00
http://statistics.data.gov.uk/id/local-authority-district/23UB,Cheltenham Borough Council,External Improvements,14037889,gp15/012333,G Purchase Construction Limited,C1107-CAH003,Building Works,24/07/2015,57148.67
http://statistics.data.gov.uk/id/local-authority-district/23UB,Cheltenham Borough Council,Trees,14038436,213,Gaskins Treework Specialists,R2070-PLP006,Tree Work,24/07/2015,2070.50
http://statistics.data.gov.uk/id/local-authority-district/23UB,Cheltenham Borough Council,Reception/Customer Services,14038554,616,Get Media,R4317-SUP008,Non Staff Advertising,31/07/2015,1843.60
http://statistics.data.gov.uk/id/local-authority-district/23UB,Cheltenham Borough Council,Cheltenham Environmental Fund- Transport,14038109,NBW/CBC/01/2015,Gloucestershire Bike Project CIC,R4400-ENF103,Services - Professional Fees,17/07/2015,800.00
http://statistics.data.gov.uk/id/local-authority-district/23UB,Cheltenham Borough Council,Household Waste,14037994,1800361209,Gloucestershire County Council,R4400-WST001,Services - Professional Fees,03/07/2015,7051.80
http://statistics.data.gov.uk/id/local-authority-district/23UB,Cheltenham Borough Council,Household Waste,14037993,1800361210,Gloucestershire County Council,R4400-WST001,Services - Professional Fees,03/07/2015,7260.00
http://statistics.data.gov.uk/id/local-authority-district/23UB,Cheltenham Borough Council,Corporate Policy Making,14038736,1800364339,Gloucestershire County Council,R6282-COR003,Contributions,31/07/2015,10000.00
http://statistics.data.gov.uk/id/local-authority-district/23UB,Cheltenham Borough Council,Community Welfare Grants,14038599,Pos Acts Glos Young Carers,Gloucestershire Young Carers,R6280-GBD001,Grants,31/07/2015,1100.00
http://statistics.data.gov.uk/id/local-authority-district/23UB,Cheltenham Borough Council,Corporate Management,14038209,8381725,Grant Thornton UK LLP,R4430-COR001,Audit Fees,17/07/2015,16243.50
http://statistics.data.gov.uk/id/local-authority-district/23UB,Cheltenham Borough Council,Income and Expenditure on Investment Properties and Changes in Their Fair Value,14038706,2837,Greenway Partnership Limited T/A GPL Building Services,R2062-FIE040,R & M of Build Cyclical Electrical Remedials,31/07/2015,772.80
http://statistics.data.gov.uk/id/local-authority-district/23UB,Cheltenham Borough Council,Public Conveniences,14038046,2810,Greenway Partnership Limited T/A GPL Building Services,R2085-REG019,R&M of Fix & Fit - Internal,10/07/2015,1060.00
http://statistics.data.gov.uk/id/local-authority-district/23UB,Cheltenham Borough Council,Prince of Wales Stadium Repairs & Maintenance,14037936,2806,Greenway Partnership Limited T/A GPL Building Services,R2004-REC112,R & M of Build Programmed,03/07/2015,3914.00
http://statistics.data.gov.uk/id/local-authority-district/23UB,Cheltenham Borough Council,Parks & Gardens Operations,14038553,2846,Greenway Partnership Limited T/A GPL Building Services,R4010-OPS001,Materials - Other Materials,31/07/2015,6075.00
http://statistics.data.gov.uk/id/local-authority-district/23UB,Cheltenham Borough Council,Parks & Gardens Operations,14038553,2846,Greenway Partnership Limited T/A GPL Building Services,R2075-OPS001,Grounds Maintenance - Contract,31/07/2015,7145.00
http://statistics.data.gov.uk/id/local-authority-district/23UB,Cheltenham Borough Council,Prince of Wales Stadium Repairs & Maintenance,14038593,2848,Greenway Partnership Limited T/A GPL Building Services,R2004-REC112,R & M of Build Programmed,31/07/2015,8557.00
http://statistics.data.gov.uk/id/local-authority-district/23UB,Cheltenham Borough Council,Parks & Gardens Operations,14038288,2819,Greenway Partnership Limited T/A GPL Building Services,R2007-OPS001,R & M of Plant Contracts,17/07/2015,2779.50
http://statistics.data.gov.uk/id/local-authority-district/23UB,Cheltenham Borough Council,Cheltenham Municipal Offices,14037772,343810,Greenworks Solutions Limited,R2083-ADB101,R&M of Build - Routine,03/07/2015,3237.00
http://statistics.data.gov.uk/id/local-authority-district/23UB,Cheltenham Borough Council,Registration of Electors,14038315,9236,Halarose Limited,R4531-ELE001,IT - Purchase of Software,17/07/2015,646.66
http://statistics.data.gov.uk/id/local-authority-district/23UB,Cheltenham Borough Council,Flood Risk Management,14038064,35002,Halcrow Group Limited,R5001-FRM101,TPP - Major External Contractors,10/07/2015,782.50
http://statistics.data.gov.uk/id/local-authority-district/23UB,Cheltenham Borough Council,Flood Risk Management,14038236,36044,Halcrow Group Limited,R5001-FRM101,TPP - Major External Contractors,17/07/2015,3530.00
http://statistics.data.gov.uk/id/local-authority-district/23UB,Cheltenham Borough Council,Flood Risk Management,14038575,36654,Halcrow Group Limited,R5001-FRM101,TPP - Major External Contractors,31/07/2015,5167.42
http://statistics.data.gov.uk/id/local-authority-district/23UB,Cheltenham Borough Council,Property Services,14038355,1005597315,Hays Specialist Recruitment Limited,R1100-SUP025,Agency Staff,17/07/2015,1059.84
http://statistics.data.gov.uk/id/local-authority-district/23UB,Cheltenham Borough Council,Property Services,14038031,1005522022,Hays Specialist Recruitment Limited,R1100-SUP025,Agency Staff,10/07/2015,1089.28
http://statistics.data.gov.uk/id/local-authority-district/23UB,Cheltenham Borough Council,Property Services,14038032,1005541561,Hays Specialist Recruitment Limited,R1100-SUP025,Agency Staff,10/07/2015,1089.28
http://statistics.data.gov.uk/id/local-authority-district/23UB,Cheltenham Borough Council,Property Services,14038333,1005582725,Hays Specialist Recruitment Limited,R1100-SUP025,Agency Staff,17/07/2015,1089.28
http://statistics.data.gov.uk/id/local-authority-district/23UB,Cheltenham Borough Council,Property Services,14038858,1005637281,Hays Specialist Recruitment Limited,R1100-SUP025,Agency Staff,31/07/2015,1089.28
http://statistics.data.gov.uk/id/local-authority-district/23UB,Cheltenham Borough Council,Housing Enabling,14037991,hdh 059,HDH Planning & Development Limited,R4400-ENA001,Services - Professional Fees,03/07/2015,4000.00
http://statistics.data.gov.uk/id/local-authority-district/23UB,Cheltenham Borough Council,Cheltenham Municipal Offices,14038862,15131,Hellion Environmental Limited,R2048-ADB101,R & M of Build Legionellla,31/07/2015,760.00
http://statistics.data.gov.uk/id/local-authority-district/23UB,Cheltenham Borough Council,Art Gallery & Museum Repairs & Maintenance,14038152,15048,Hellion Environmental Limited,R2080-CUL117,Mechanical Services,17/07/2015,520.84
http://statistics.data.gov.uk/id/local-authority-district/23UB,Cheltenham Borough Council,Art Gallery & Museum Repairs & Maintenance,14038653,15086,Hellion Environmental Limited,R2080-CUL117,Mechanical Services,31/07/2015,520.84
http://statistics.data.gov.uk/id/local-authority-district/23UB,Cheltenham Borough Council,Cheltenham Municipal Offices,14038861,15130,Hellion Environmental Limited,R2048-ADB101,R & M of Build Legionellla,31/07/2015,528.00
http://statistics.data.gov.uk/id/local-authority-district/23UB,Cheltenham Borough Council,Cheltenham Municipal Offices,14038646,15122,Hellion Environmental Limited,R2008-ADB101,R & M of Build - Reactive Repairs,31/07/2015,545.29
http://statistics.data.gov.uk/id/local-authority-district/23UB,Cheltenham Borough Council,Recreation Centre Repairs & Maintenance,14038138,15062,Hellion Environmental Limited,R2080-REC111,Mechanical Services,17/07/2015,545.63
http://statistics.data.gov.uk/id/local-authority-district/23UB,Cheltenham Borough Council,Recreation Centre Repairs & Maintenance,14038657,15100,Hellion Environmental Limited,R2080-REC111,Mechanical Services,31/07/2015,545.63
http://statistics.data.gov.uk/id/local-authority-district/23UB,Cheltenham Borough Council,Prince of Wales Stadium Repairs & Maintenance,14038647,15124,Hellion Environmental Limited,R2008-REC112,R & M of Build - Reactive Repairs,31/07/2015,619.50
http://statistics.data.gov.uk/id/local-authority-district/23UB,Cheltenham Borough Council,Cheltenham Municipal Offices,14038859,15128,Hellion Environmental Limited,R2048-ADB101,R & M of Build Legionellla,31/07/2015,960.00
http://statistics.data.gov.uk/id/local-authority-district/23UB,Cheltenham Borough Council,Cheltenham Municipal Offices,14038860,15129,Hellion Environmental Limited,R2048-ADB101,R & M of Build Legionellla,31/07/2015,960.00
http://statistics.data.gov.uk/id/local-authority-district/23UB,Cheltenham Borough Council,Cheltenham Municipal Offices,14038862,15131,Hellion Environmental Limited,R2048-ADB101,R & M of Build Legionellla,31/07/2015,1140.00
http://statistics.data.gov.uk/id/local-authority-district/23UB,Cheltenham Borough Council,Cheltenham Municipal Offices,14038860,15129,Hellion Environmental Limited,R2048-ADB101,R & M of Build Legionellla,31/07/2015,1177.00
http://statistics.data.gov.uk/id/local-authority-district/23UB,Cheltenham Borough Council,Cheltenham Municipal Offices,14038859,15128,Hellion Environmental Limited,R2048-ADB101,R & M of Build Legionellla,31/07/2015,3182.00
http://statistics.data.gov.uk/id/local-authority-district/23UB,Cheltenham Borough Council,Supervision and Management,14038454,SIAL/00016006,Herefordshire Housing Limited,R4445-HRA110,Communal Alarms - Monitoring & Maintenance,31/07/2015,514.80
http://statistics.data.gov.uk/id/local-authority-district/23UB,Cheltenham Borough Council,Repairs and Maintenance,14038495,SIAL/00015975,Herefordshire Housing Limited,R4445-HRA100,Communal Alarms - Monitoring & Maintenance,31/07/2015,543.40
http://statistics.data.gov.uk/id/local-authority-district/23UB,Cheltenham Borough Council,Corporate Policy Making,14038444,1506102,Hitec (Laboratories) Limited,R4531-COR003,IT - Purchase of Software,24/07/2015,3549.42
http://statistics.data.gov.uk/id/local-authority-district/23UB,Cheltenham Borough Council,General Fund Balance Sheet,14038058,adj tax for june 2015,HMRC - CBC Election Staff,B6110-BAL100,Short term Creditors - PAYE and NI,10/07/2015,1970.80
http://statistics.data.gov.uk/id/local-authority-district/23UB,Cheltenham Borough Council,General Fund Balance Sheet,14038166,CISDEDUCT0606-050715,HMRC (CBC - CIS),B6220-BAL100,CIS Deductions Control (reallocated),10/07/2015,2283.05
http://statistics.data.gov.uk/id/local-authority-district/23UB,Cheltenham Borough Council,Repairs and Maintenance,14038260,150255AA3,Ian Williams Limited,R2060-HRA100,R & M of Build Cyclical Painting Communal Areas,17/07/2015,55719.00
http://statistics.data.gov.uk/id/local-authority-district/23UB,Cheltenham Borough Council,Built Environment,14038900,I52791,Ice Creates Limited,R4411-SUP040,Consultancy Fees,31/07/2015,725.00
http://statistics.data.gov.uk/id/local-authority-district/23UB,Cheltenham Borough Council,Built Environment,14038014,I52500,Ice Creates Limited,R4411-SUP040,Consultancy Fees,17/07/2015,4350.00
http://statistics.data.gov.uk/id/local-authority-district/23UB,Cheltenham Borough Council,Built Environment,14038899,I52723,Ice Creates Limited,R4411-SUP040,Consultancy Fees,31/07/2015,725.00
http://statistics.data.gov.uk/id/local-authority-district/23UB,Cheltenham Borough Council,Joint Core Strategy,14038420,1510,Inovem Limited,R4400-PLP101,Services - Professional Fees,24/07/2015,6250.00
http://statistics.data.gov.uk/id/local-authority-district/23UB,Cheltenham Borough Council,"Cemetery, Crematorium and Churchyards",14038304,6807,Institute of Cemetery and Crematorium  Management (ICCM),R1700-CCM001,Staff Advertising Costs,24/07/2015,960.00
http://statistics.data.gov.uk/id/local-authority-district/23UB,Cheltenham Borough Council,Licensing,14038174,22666,Intelligent Data Systems (UK) Limited,R4400-REG002,Services - Professional Fees,17/07/2015,500.25
http://statistics.data.gov.uk/id/local-authority-district/23UB,Cheltenham Borough Council,Sports & Open Spaces Operations,14038439,15/032,J P North (Farmer),R2071-OPS002,Open Spaces and Grassed Areas,24/07/2015,800.00
http://statistics.data.gov.uk/id/local-authority-district/23UB,Cheltenham Borough Council,Sports & Open Spaces Operations,14038440,15/033,J P North (Farmer),R2071-OPS002,Open Spaces and Grassed Areas,24/07/2015,610.00
http://statistics.data.gov.uk/id/local-authority-district/23UB,Cheltenham Borough Council,Sports & Open Spaces Operations,14038307,15/030,J P North (Farmer),R2071-OPS002,Open Spaces and Grassed Areas,17/07/2015,1200.00
http://statistics.data.gov.uk/id/local-authority-district/23UB,Cheltenham Borough Council,Sports & Open Spaces Operations,14038273,15/031,J P North (Farmer),R2071-OPS002,Open Spaces and Grassed Areas,17/07/2015,1300.00
http://statistics.data.gov.uk/id/local-authority-district/23UB,Cheltenham Borough Council,Development costs - Garages Sites 2,14038271,821077A,JMP Consultants Limited,C1107-CAH052,Building Works,24/07/2015,1100.00
http://statistics.data.gov.uk/id/local-authority-district/23UB,Cheltenham Borough Council,Supervision and Management,14038331,RND300615/comb,John Gillman & Sons (Electrical) Limited (Gillmans Appliance),R4002-HRA110,Tools & Equipment - Lease/Rental,31/07/2015,1980.71
http://statistics.data.gov.uk/id/local-authority-district/23UB,Cheltenham Borough Council,Development costs - Garages Sites 2,14037505,1813/1817-2,John S Doody FRICS,C1107-CAH052,Building Works,31/07/2015,1350.00
http://statistics.data.gov.uk/id/local-authority-district/23UB,Cheltenham Borough Council,New Heating Installations,14038446,1085417,Liberty Gas Group,C1107-CAH009,Building Works,24/07/2015,3485.00
http://statistics.data.gov.uk/id/local-authority-district/23UB,Cheltenham Borough Council,Repairs and Maintenance,14038447,1085422,Liberty Gas Group,R2040-HRA100,R & M of Build Central Heating,24/07/2015,35299.59
http://statistics.data.gov.uk/id/local-authority-district/23UB,Cheltenham Borough Council,Pest Control,14038396,255,Life in the Rainforest,R4429-REG018,Services - other fees,24/07/2015,970.00
http://statistics.data.gov.uk/id/local-authority-district/23UB,Cheltenham Borough Council,Community Welfare Grants,14038560,56089941,Local World Limited (was Northcliffe Media),R4400-GBD001,Services - Professional Fees,31/07/2015,10000.00
http://statistics.data.gov.uk/id/local-authority-district/23UB,Cheltenham Borough Council,Corporate Management,14038194,60287625,Local World Limited (was Northcliffe Media),R4980-COR001,Miscellaneous Expenses,17/07/2015,1500.00
http://statistics.data.gov.uk/id/local-authority-district/23UB,Cheltenham Borough Council,Repairs and Maintenance,14038402,SIN00010781/B,Low Carbon Exchange (LCX Solar Limited),R2004-HRA100,R & M of Build Programmed,31/07/2015,28921.24
http://statistics.data.gov.uk/id/local-authority-district/23UB,Cheltenham Borough Council,Parks & Gardens Operations,14038068,2532,Lushglen Exterior Furniture Renovation Services,R2075-OPS001,Grounds Maintenance - Contract,17/07/2015,1040.00
http://statistics.data.gov.uk/id/local-authority-district/23UB,Cheltenham Borough Council,Fire Protection,14037918,605,M J Loveridge Limited,C1107-CAH015,Building Works,03/07/2015,1250.00
http://statistics.data.gov.uk/id/local-authority-district/23UB,Cheltenham Borough Council,Fire Protection,14038266,Q648,M J Loveridge Limited,C1107-CAH015,Building Works,17/07/2015,1250.00
http://statistics.data.gov.uk/id/local-authority-district/23UB,Cheltenham Borough Council,Building Control - Fee Earning Work,14038023,C15/00547/DEXBN,M Whitehead,R9301-BUC001,Fees - Building Regulations,03/07/2015,555.00
http://statistics.data.gov.uk/id/local-authority-district/23UB,Cheltenham Borough Council,Cheltenham Municipal Offices,14038362,10463,Massie Electrics Limited,R2062-ADB101,R & M of Build Cyclical Electrical Remedials,17/07/2015,686.00
http://statistics.data.gov.uk/id/local-authority-district/23UB,Cheltenham Borough Council,Recreation Centre Repairs & Maintenance,14038365,10457,Massie Electrics Limited,R2062-REC111,R & M of Build Cyclical Electrical Remedials,17/07/2015,699.90
http://statistics.data.gov.uk/id/local-authority-district/23UB,Cheltenham Borough Council,Sports & Open Spaces Operations,14038576,136981,Matta Products (UK) Limited,R4003-OPS002,Tools & Equipment - R & M,24/07/2015,2278.00
http://statistics.data.gov.uk/id/local-authority-district/23UB,Cheltenham Borough Council,General Fund Balance Sheet,14038597,BALANCE 090615,Mayor's Charity,B6170-BAL100,Short Term Revenue Creditors (incl RIA) - Other entities and individuals,31/07/2015,954.37
http://statistics.data.gov.uk/id/local-authority-district/23UB,Cheltenham Borough Council,External Improvements,14038301,5233,Mcdonnell Price Roofing Contractors Limited,C1107-CAH003,Building Works,17/07/2015,3431.00
http://statistics.data.gov.uk/id/local-authority-district/23UB,Cheltenham Borough Council,Adaptations for the Disabled (CBC),14038488,REDACTED,Mears Home Improvements (Client Account),C1107-CAH028,Building Works,24/07/2015,6532.54
http://statistics.data.gov.uk/id/local-authority-district/23UB,Cheltenham Borough Council,Adaptations for the Disabled (CBC),14038487,REDACTED,Mears Home Improvements (Client Account),C1107-CAH028,Building Works,24/07/2015,20000.00
http://statistics.data.gov.uk/id/local-authority-district/23UB,Cheltenham Borough Council,Shopmobility,14037896,110265,MK Battery International Limited (MK Battery),R4003-PUT102,Tools & Equipment - R & M,03/07/2015,562.40
http://statistics.data.gov.uk/id/local-authority-district/23UB,Cheltenham Borough Council,Repairs and Maintenance,14038416,22705,Morgan Lambert Limited,R2040-HRA100,R & M of Build Central Heating,24/07/2015,924.00
http://statistics.data.gov.uk/id/local-authority-district/23UB,Cheltenham Borough Council,Fire Protection,14038055,1755,MPL Wrought Iron LLP,C1107-CAH015,Building Works,10/07/2015,750.00
http://statistics.data.gov.uk/id/local-authority-district/23UB,Cheltenham Borough Council,Rent Control,14038381,REDACTED,REDACTED,R9910-HRA900,Refund of Overpiad Rent,24/07/2015,2410.07
http://statistics.data.gov.uk/id/local-authority-district/23UB,Cheltenham Borough Council,Joint Core Strategy,14038239,CGT JCS 003,REDACTED,R4400-PLP101,Services - Professional Fees,24/07/2015,3175.00
http://statistics.data.gov.uk/id/local-authority-district/23UB,Cheltenham Borough Council,"Cemetery, Crematorium and Churchyards",14038247,300615,REDACTED,R4401-CCM001,Services - Fees and Charges,17/07/2015,780.60
http://statistics.data.gov.uk/id/local-authority-district/23UB,Cheltenham Borough Council,Urban Design,14038377,477,REDACTED,R4010-URB101,Materials - Other Materials,17/07/2015,4980.00
http://statistics.data.gov.uk/id/local-authority-district/23UB,Cheltenham Borough Council,Rent Control,14038484,Rent Refund (REDACTED),REDACTED,R9910-HRA900,Refund of Overpiad Rent,24/07/2015,1509.86
http://statistics.data.gov.uk/id/local-authority-district/23UB,Cheltenham Borough Council,Twinning Expenses,14038604,REDCATED,REDACTED,R4401-DRM011,Services - Fees and Charges,31/07/2015,560.00
http://statistics.data.gov.uk/id/local-authority-district/23UB,Cheltenham Borough Council,Twinning Expenses,14038605,REDACTED,REDACTED,R4401-DRM011,Services - Fees and Charges,31/07/2015,560.00
http://statistics.data.gov.uk/id/local-authority-district/23UB,Cheltenham Borough Council,Rent Control,14038072,REDACTED,REDACTED,R9910-HRA900,Refund of Overpiad Rent,10/07/2015,1061.45
http://statistics.data.gov.uk/id/local-authority-district/23UB,Cheltenham Borough Council,Sports & Open Spaces Operations,14037899,015/3,Mumkin Operational Services,R4003-OPS002,Tools & Equipment - R & M,03/07/2015,747.00
http://statistics.data.gov.uk/id/local-authority-district/23UB,Cheltenham Borough Council,Sports & Open Spaces Operations,14037900,015/02,Mumkin Operational Services,R4003-OPS002,Tools & Equipment - R & M,03/07/2015,997.00
http://statistics.data.gov.uk/id/local-authority-district/23UB,Cheltenham Borough Council,Sports & Open Spaces Operations,14037898,015/1,Mumkin Operational Services,R4003-OPS002,Tools & Equipment - R & M,03/07/2015,2574.00
http://statistics.data.gov.uk/id/local-authority-district/23UB,Cheltenham Borough Council,Training & Development,14038414,i286,MW Sigma Limited T/A MAX Training and Development & MAX Conflict Management,R1652-SUP020,Training Fees (External),24/07/2015,1304.70
http://statistics.data.gov.uk/id/local-authority-district/23UB,Cheltenham Borough Council,Royal Well Bus Node,14038335,2069,Nick Bevan Consulting Limited,R2004-PUT101,R & M of Build Programmed,17/07/2015,2187.50
http://statistics.data.gov.uk/id/local-authority-district/23UB,Cheltenham Borough Council,Waste & Recycling - Marketing,14038383,CBC005,Nicolas Francis,R4317-RYC007,Non Staff Advertising,17/07/2015,1984.89
http://statistics.data.gov.uk/id/local-authority-district/23UB,Cheltenham Borough Council,Option Appraisal Voids 2012/13,14037888,8648,NKS Contracts (Central) Limited,C1107-CAH002,Building Works,03/07/2015,18620.26
http://statistics.data.gov.uk/id/local-authority-district/23UB,Cheltenham Borough Council,Internal Improvements,14038419,8753,NKS Contracts (Central) Limited,C1107-CAH004,Building Works,31/07/2015,32769.29
http://statistics.data.gov.uk/id/local-authority-district/23UB,Cheltenham Borough Council,Community Welfare Grants,14038882,1527,Odgers Conservation Consultants Limited,R4400-GBD001,Services - Professional Fees,31/07/2015,750.00
http://statistics.data.gov.uk/id/local-authority-district/23UB,Cheltenham Borough Council,War Memorials,14038312,1522,Odgers Conservation Consultants Limited,R4400-CUL002,Services - Professional Fees,17/07/2015,2941.60
http://statistics.data.gov.uk/id/local-authority-district/23UB,Cheltenham Borough Council,CCTV,14038080,597474,OpenView Security Solutions Limited,R4003-CCT001,Tools & Equipment - R & M,24/07/2015,1419.17
http://statistics.data.gov.uk/id/local-authority-district/23UB,Cheltenham Borough Council,Joint Core Strategy,14038283,046.115.16,Opinion Research Services Ltd,R4400-PLP101,Services - Professional Fees,17/07/2015,1000.00
http://statistics.data.gov.uk/id/local-authority-district/23UB,Cheltenham Borough Council,Repairs and Maintenance,14038213,O0383006,Orbis Protect Limited,R2012-HRA100,R & M of Build Standby and Call Out,17/07/2015,1327.03
http://statistics.data.gov.uk/id/local-authority-district/23UB,Cheltenham Borough Council,Supervision and Management,14038443,MAY272/PPC/RCS,P C Moleing Services Limited,R5012-HRA110,Minor Neighbourhood Works - Oakley Areas,24/07/2015,595.00
http://statistics.data.gov.uk/id/local-authority-district/23UB,Cheltenham Borough Council,Car Parks - Off Street Operations,14037925,uk79525,Parkeon Limited,R4401-CPK001,Services - Fees and Charges,10/07/2015,2012.80
http://statistics.data.gov.uk/id/local-authority-district/23UB,Cheltenham Borough Council,Community Development,14038314,152/15,People and Places in Gloucestershire Community Interest Company,R4401-COM001,Services - Fees and Charges,17/07/2015,2750.00
http://statistics.data.gov.uk/id/local-authority-district/23UB,Cheltenham Borough Council,Joint Core Strategy,14038082,118754 MFE,Peter Brett Associates LLP,R4400-PLP101,Services - Professional Fees,17/07/2015,1164.00
http://statistics.data.gov.uk/id/local-authority-district/23UB,Cheltenham Borough Council,Postal Services,14038272,51410046,Pitney Bowes - Postage by Phone,R4521-SUP024,Postages - franking machine,17/07/2015,4999.00
http://statistics.data.gov.uk/id/local-authority-district/23UB,Cheltenham Borough Council,Cemetery & Crematorium Repairs & Maintenance,14038332,3201,PJ Combustion Solutions Limited,R2083-CCM111,R&M of Build - Routine,17/07/2015,5259.00
http://statistics.data.gov.uk/id/local-authority-district/23UB,Cheltenham Borough Council,Development costs - Garages Sites 2,14038562,PSDFeas414,Powersave Direct Limited,C1107-CAH052,Building Works,24/07/2015,740.41
http://statistics.data.gov.uk/id/local-authority-district/23UB,Cheltenham Borough Council,Recreation Centre Repairs & Maintenance,14038373,CIP-00000499,Prospec Limited,R2085-REC111,R&M of Fix & Fit - Internal,17/07/2015,1123.45
http://statistics.data.gov.uk/id/local-authority-district/23UB,Cheltenham Borough Council,Development costs - Swindon Road,14038805,10510,Quattro Design Architects Limited,C1107-CAH050,Building Works,31/07/2015,2063.00
http://statistics.data.gov.uk/id/local-authority-district/23UB,Cheltenham Borough Council,Neighbourhood works 2012/13,14038298,132340,Rainer Security Products Limited,C1107-CAH005,Building Works,24/07/2015,733.75
http://statistics.data.gov.uk/id/local-authority-district/23UB,Cheltenham Borough Council,Joint Core Strategy,14038591,PINF681170,Randstad Employment Bureau Limited,R4401-PLP101,Services - Fees and Charges,31/07/2015,870.00
http://statistics.data.gov.uk/id/local-authority-district/23UB,Cheltenham Borough Council,Joint Core Strategy,14038590,PINF681169,Randstad Employment Bureau Limited,R4401-PLP101,Services - Fees and Charges,31/07/2015,1522.50
http://statistics.data.gov.uk/id/local-authority-district/23UB,Cheltenham Borough Council,Joint Core Strategy,14038583,PINF681171,Randstad Employment Bureau Limited,R4401-PLP101,Services - Fees and Charges,31/07/2015,2392.50
http://statistics.data.gov.uk/id/local-authority-district/23UB,Cheltenham Borough Council,Joint Core Strategy,14038592,PINF681172,Randstad Employment Bureau Limited,R4401-PLP101,Services - Fees and Charges,31/07/2015,2392.50
http://statistics.data.gov.uk/id/local-authority-district/23UB,Cheltenham Borough Council,Joint Core Strategy,14038589,PINF681168,Randstad Employment Bureau Limited,R4401-PLP101,Services - Fees and Charges,31/07/2015,1305.00
http://statistics.data.gov.uk/id/local-authority-district/23UB,Cheltenham Borough Council,New Cremators,14038608,rjp/ca/6333/2,Robert Potter and Partners LLP,C1005-CAP001,Surveyors Fees,31/07/2015,12470.85
http://statistics.data.gov.uk/id/local-authority-district/23UB,Cheltenham Borough Council,General Fund Balance Sheet,14038608,rjp/ca/6333/2,Robert Potter and Partners LLP,E9994-BAL100,Undeclared VAT,31/07/2015,2494.17
http://statistics.data.gov.uk/id/local-authority-district/23UB,Cheltenham Borough Council,Parliamentary Elections,14037950,950037766,Royal Mail,R4520-ELE004,Postages - stamps,03/07/2015,1045.49
http://statistics.data.gov.uk/id/local-authority-district/23UB,Cheltenham Borough Council,Council Tax Collection,14038234,9050079022,Royal Mail,R4521-LTC001,Postages - franking machine,17/07/2015,595.77
http://statistics.data.gov.uk/id/local-authority-district/23UB,Cheltenham Borough Council,Council Tax Collection,14038321,9050115866,Royal Mail,R4521-LTC001,Postages - franking machine,17/07/2015,1327.38
http://statistics.data.gov.uk/id/local-authority-district/23UB,Cheltenham Borough Council,Community Welfare Grants,14038561,201847,RU Electrical Services (Roger Underdown Limited),R4001-GBD001,Tools & Equipment - Hire,31/07/2015,2280.00
http://statistics.data.gov.uk/id/local-authority-district/23UB,Cheltenham Borough Council,Urban Design,14038267,261,Safer Sphere CHS Ltd,R1652-URB101,Training Fees (External),17/07/2015,745.00
http://statistics.data.gov.uk/id/local-authority-district/23UB,Cheltenham Borough Council,Sandford Lido car park,14038385,SANDFORD LIDO JUN 15,Sandford Parks Lido (Trading) Limited,R5003-CPK103,TPP - Agency Fees,31/07/2015,31179.90
http://statistics.data.gov.uk/id/local-authority-district/23UB,Cheltenham Borough Council,Sandford Lido car park,14038385,SANDFORD LIDO JUN 15,Sandford Parks Lido (Trading) Limited,R5003-CPK103,TPP - Agency Fees,31/07/2015,-1683.33
http://statistics.data.gov.uk/id/local-authority-district/23UB,Cheltenham Borough Council,Repairs and Maintenance,14038054,624,SAS EPC,R2018-HRA100,R & M of Build Voids Energy Performance Certificates,10/07/2015,751.00
http://statistics.data.gov.uk/id/local-authority-district/23UB,Cheltenham Borough Council,Repairs and Maintenance,14038053,613,SAS EPC,R2018-HRA100,R & M of Build Voids Energy Performance Certificates,10/07/2015,709.00
http://statistics.data.gov.uk/id/local-authority-district/23UB,Cheltenham Borough Council,Car Park Income Collection,14038904,506781,Security Plus+ Limited,R4435-CPK002,Cash Collection Contract,31/07/2015,873.70
http://statistics.data.gov.uk/id/local-authority-district/23UB,Cheltenham Borough Council,Recreation Centre Repairs & Maintenance,14037927,599104098,Severn Trent Water,R2402-REC111,Sewerage and Environmental Services,03/07/2015,1812.00
http://statistics.data.gov.uk/id/local-authority-district/23UB,Cheltenham Borough Council,Development Control - Applications,14038737,SF-888,SF Planning Limited,R4420-DEV001,Legal Expenses And Court Costs,31/07/2015,4505.15
http://statistics.data.gov.uk/id/local-authority-district/23UB,Cheltenham Borough Council,Urban Design,14038276,30195,Signway Supplies Limited,R4010-URB101,Materials - Other Materials,17/07/2015,1551.50
http://statistics.data.gov.uk/id/local-authority-district/23UB,Cheltenham Borough Council,Training & Development,14038297,5861,Skillsolve Training Limited,R1652-SUP020,Training Fees (External),17/07/2015,795.00
http://statistics.data.gov.uk/id/local-authority-district/23UB,Cheltenham Borough Council,Flood Risk Management,14038268,5469,Slimbridge Wetland Plants Limited T/A JPR Environmental,R5001-FRM101,TPP - Major External Contractors,17/07/2015,9386.48
http://statistics.data.gov.uk/id/local-authority-district/23UB,Cheltenham Borough Council,Soil Stacks,14038607,9067,Snape Contracting Limited (Snapecall),C1107-CAH024,Building Works,31/07/2015,69725.34
http://statistics.data.gov.uk/id/local-authority-district/23UB,Cheltenham Borough Council,"Cemetery, Crematorium and Churchyards",14038438,1662504,Spaldings Limited,R4000-CCM001,Equipment Purchase,24/07/2015,960.00
http://statistics.data.gov.uk/id/local-authority-district/23UB,Cheltenham Borough Council,"Cemetery, Crematorium and Churchyards",14038305,1655086,Spaldings Limited,R4000-CCM001,Equipment Purchase,24/07/2015,500.90
http://statistics.data.gov.uk/id/local-authority-district/23UB,Cheltenham Borough Council,"Cemetery, Crematorium and Churchyards",14038566,1640690,Spaldings Limited,R4000-CCM001,Equipment Purchase,31/07/2015,2091.22
http://statistics.data.gov.uk/id/local-authority-district/23UB,Cheltenham Borough Council,Printing Services,14037919,343599,Springfield Business Papers Limited,R4306-SUP022,Photocopier Charges - Consumables,03/07/2015,1035.00
http://statistics.data.gov.uk/id/local-authority-district/23UB,Cheltenham Borough Council,Supervision and Management,14038007,671582196/0009,SSE - Southern Electric (Bill payments),R2100-HRA110,Electricity,03/07/2015,921.17
http://statistics.data.gov.uk/id/local-authority-district/23UB,Cheltenham Borough Council,Supervision and Management,14038000,511298564/0039,SSE - Southern Electric (Bill payments),R2100-HRA110,Electricity,03/07/2015,1253.31
http://statistics.data.gov.uk/id/local-authority-district/23UB,Cheltenham Borough Council,Supervision and Management,14038216,971299363/0083,SSE - Southern Electric (Bill payments),R2100-HRA110,Electricity,17/07/2015,673.21
http://statistics.data.gov.uk/id/local-authority-district/23UB,Cheltenham Borough Council,Public Art,14038606,ST PAULS ART PROJECT,ST Pauls Road Area Residents Association (SPRA),R4400-PUB101,Services - Professional Fees,31/07/2015,1000.00
http://statistics.data.gov.uk/id/local-authority-district/23UB,Cheltenham Borough Council,Parks & Gardens Operations,14038570,24318,Streetmaster (South Wales) Limited,R2500-OPS001,Fixtures and Fittings - Purchases,31/07/2015,1409.00
http://statistics.data.gov.uk/id/local-authority-district/23UB,Cheltenham Borough Council,Parks & Gardens Operations,14037928,3602,Subsidence Management Limited,R1411-OPS001,Insurance - Public Liability,03/07/2015,1990.00
http://statistics.data.gov.uk/id/local-authority-district/23UB,Cheltenham Borough Council,Recreation Centre Repairs & Maintenance,14038504,4754,System Six Design & Build,R2700-REC111,Contract Cleaning,24/07/2015,1000.00
http://statistics.data.gov.uk/id/local-authority-district/23UB,Cheltenham Borough Council,Recreation Centre Repairs & Maintenance,14038726,4780,System Six Design & Build,R2077-REC111,R&M of Build - internal structures,31/07/2015,529.10
http://statistics.data.gov.uk/id/local-authority-district/23UB,Cheltenham Borough Council,Cemetery & Crematorium Repairs & Maintenance,14038728,4782,System Six Design & Build,R2078-CCM111,R&M of Build - external structures,31/07/2015,572.66
http://statistics.data.gov.uk/id/local-authority-district/23UB,Cheltenham Borough Council,Cemetery & Crematorium Repairs & Maintenance,14038720,4792,System Six Design & Build,R2700-CCM111,Contract Cleaning,31/07/2015,600.00
http://statistics.data.gov.uk/id/local-authority-district/23UB,Cheltenham Borough Council,Art Gallery & Museum Repairs & Maintenance,14038727,4781,System Six Design & Build,R2081-CUL117,Roof Repairs,31/07/2015,2990.35
http://statistics.data.gov.uk/id/local-authority-district/23UB,Cheltenham Borough Council,Health & Safety,14038409,966,Tailor Made Training UK,R1652-SUP019,Training Fees (External),24/07/2015,1100.00
http://statistics.data.gov.uk/id/local-authority-district/23UB,Cheltenham Borough Council,Joint Core Strategy,14037939,debt104086,Tewkesbury Borough Council,R4400-PLP101,Services - Professional Fees,03/07/2015,1000.00
http://statistics.data.gov.uk/id/local-authority-district/23UB,Cheltenham Borough Council,Income and Expenditure on Investment Properties and Changes in Their Fair Value,14038520,DEBT104139,Tewkesbury Borough Council,R4426-FIE040,Legal Expenses,31/07/2015,5100.00
http://statistics.data.gov.uk/id/local-authority-district/23UB,Cheltenham Borough Council,Joint Core Strategy,14038226,DEBT104116,Tewkesbury Borough Council,R4400-PLP101,Services - Professional Fees,24/07/2015,14000.00
http://statistics.data.gov.uk/id/local-authority-district/23UB,Cheltenham Borough Council,Supervision and Management,14038519,DEBT104132,Tewkesbury Borough Council,R4420-HRA110,Legal Expenses And Court Costs,31/07/2015,2037.50
http://statistics.data.gov.uk/id/local-authority-district/23UB,Cheltenham Borough Council,Supervision and Management,14037932,debt104076,Tewkesbury Borough Council,R4426-HRA110,Legal Expenses,03/07/2015,3223.00
http://statistics.data.gov.uk/id/local-authority-district/23UB,Cheltenham Borough Council,Cultural - Service Management and Support Services,14037912,70009057,The Cheltenham Trust,R5001-CSM001,TPP - Major External Contractors,03/07/2015,80636.00
http://statistics.data.gov.uk/id/local-authority-district/23UB,Cheltenham Borough Council,Cultural - Service Management and Support Services,14038871,70009843,The Cheltenham Trust,R5001-CSM001,TPP - Major External Contractors,31/07/2015,80636.00
http://statistics.data.gov.uk/id/local-authority-district/23UB,Cheltenham Borough Council,General Fund Balance Sheet,14038060,childcare vouchers 24/7/15,The Midcounties Co-operative,B6170-BAL100,Short Term Revenue Creditors (incl RIA) - Other entities and individuals,29/07/2015,2650.00
http://statistics.data.gov.uk/id/local-authority-district/23UB,Cheltenham Borough Council,Development Control - Applications,14038543,1069899,The Oyster Partnership Limited,R1100-DEV001,Agency Staff,31/07/2015,1500.00
http://statistics.data.gov.uk/id/local-authority-district/23UB,Cheltenham Borough Council,Development Control - Applications,14038264,1069299,The Oyster Partnership Limited,R1100-DEV001,Agency Staff,17/07/2015,1129.13
http://statistics.data.gov.uk/id/local-authority-district/23UB,Cheltenham Borough Council,Development Control - Applications,14038549,1069597,The Oyster Partnership Limited,R1100-DEV001,Agency Staff,31/07/2015,1132.73
http://statistics.data.gov.uk/id/local-authority-district/23UB,Cheltenham Borough Council,Disabled Facility Grants,14038011,REDACTED,The Surveying Practice - Client Account,C5000-CAP221,Grants,03/07/2015,4630.64
http://statistics.data.gov.uk/id/local-authority-district/23UB,Cheltenham Borough Council,Disabled Facility Grants,14038614,REDACTED,The Surveying Practice - Client Account,C5000-CAP221,Grants,31/07/2015,6873.24
http://statistics.data.gov.uk/id/local-authority-district/23UB,Cheltenham Borough Council,Disabled Facility Grants,14038025,REDACTED,The Surveying Practice - Client Account,C5000-CAP221,Grants,03/07/2015,7193.45
http://statistics.data.gov.uk/id/local-authority-district/23UB,Cheltenham Borough Council,Disabled Facility Grants,14038153,REDACTED,The Surveying Practice - Client Account,C5000-CAP221,Grants,10/07/2015,7878.97
http://statistics.data.gov.uk/id/local-authority-district/23UB,Cheltenham Borough Council,Adaptations for the Disabled (CBC),14038197,REDACTED,The Surveying Practice - Client Account,C1107-CAH028,Building Works,17/07/2015,8559.27
http://statistics.data.gov.uk/id/local-authority-district/23UB,Cheltenham Borough Council,Disabled Facility Grants,14038154,REDACTED,The Surveying Practice - Client Account,C5000-CAP221,Grants,10/07/2015,11669.63
http://statistics.data.gov.uk/id/local-authority-district/23UB,Cheltenham Borough Council,Adaptations for the Disabled (CBC),14038010,REDACTED,The Surveying Practice - Client Account,C1107-CAH028,Building Works,03/07/2015,15000.00
http://statistics.data.gov.uk/id/local-authority-district/23UB,Cheltenham Borough Council,Disabled Facility Grants,14038056,REDACTED,The Surveying Practice - Client Account,C5000-CAP221,Grants,10/07/2015,2500.00
http://statistics.data.gov.uk/id/local-authority-district/23UB,Cheltenham Borough Council,Corporate Management,14037893,3014,Tim Kidson & Associates,R4429-COR001,Services - other fees,03/07/2015,800.00
http://statistics.data.gov.uk/id/local-authority-district/23UB,Cheltenham Borough Council,Cheltenham Municipal Offices,14038477,115488620/15,Total Gas & Power Limited,R2101-ADB101,Gas,24/07/2015,779.77
http://statistics.data.gov.uk/id/local-authority-district/23UB,Cheltenham Borough Council,Arle Road Nursery Operations,14038466,115488543/15,Total Gas & Power Limited,R2101-OPS101,Gas,31/07/2015,807.85
http://statistics.data.gov.uk/id/local-authority-district/23UB,Cheltenham Borough Council,Supervision and Management,14038472,115488576/15,Total Gas & Power Limited,R2101-HRA110,Gas,31/07/2015,878.45
http://statistics.data.gov.uk/id/local-authority-district/23UB,Cheltenham Borough Council,Town Hall Repairs & Maintenance,14038480,115488642/15,Total Gas & Power Limited,R2101-CUL112,Gas,24/07/2015,964.85
http://statistics.data.gov.uk/id/local-authority-district/23UB,Cheltenham Borough Council,Supervision and Management,14038479,115488631/15,Total Gas & Power Limited,R2101-HRA110,Gas,31/07/2015,506.77
http://statistics.data.gov.uk/id/local-authority-district/23UB,Cheltenham Borough Council,Supervision and Management,14038470,115488565/15,Total Gas & Power Limited,R2101-HRA110,Gas,31/07/2015,584.74
http://statistics.data.gov.uk/id/local-authority-district/23UB,Cheltenham Borough Council,Art Gallery & Museum Repairs & Maintenance,14038476,115488610/15,Total Gas & Power Limited,R2101-CUL117,Gas,24/07/2015,11136.10
http://statistics.data.gov.uk/id/local-authority-district/23UB,Cheltenham Borough Council,Cheltenham Depot,14038481,114690340/15,Total Gas & Power Limited,R2101-ADB103,Gas,24/07/2015,1398.64
http://statistics.data.gov.uk/id/local-authority-district/23UB,Cheltenham Borough Council,Art Gallery & Museum Repairs & Maintenance,14038464,115488532/15,Total Gas & Power Limited,R2101-CUL117,Gas,31/07/2015,2230.46
http://statistics.data.gov.uk/id/local-authority-district/23UB,Cheltenham Borough Council,Supervision and Management,14038471,115155628/15,Total Gas & Power Limited,R2101-HRA110,Gas,31/07/2015,647.78
http://statistics.data.gov.uk/id/local-authority-district/23UB,Cheltenham Borough Council,"Cemetery, Crematorium and Churchyards",14038468,115488554/15,Total Gas & Power Limited,R2101-CCM001,Gas,24/07/2015,2900.95
http://statistics.data.gov.uk/id/local-authority-district/23UB,Cheltenham Borough Council,Recreation Centre Repairs & Maintenance,14038387,15502A,Total Lighting & Controls Limited,R2004-REC111,R & M of Build Programmed,17/07/2015,13280.00
http://statistics.data.gov.uk/id/local-authority-district/23UB,Cheltenham Borough Council,Recreation Centre Repairs & Maintenance,14038594,15502B,Total Lighting & Controls Limited,R2004-REC111,R & M of Build Programmed,24/07/2015,13280.00
http://statistics.data.gov.uk/id/local-authority-district/23UB,Cheltenham Borough Council,Repairs and Maintenance,14038171,INV60494,Triangle Lift Services Limited,R2041-HRA100,R & M of Build Lifts,17/07/2015,3028.75
http://statistics.data.gov.uk/id/local-authority-district/23UB,Cheltenham Borough Council,Community Alarms,14037996,3in/10263325,Tunstall Healthcare (UK) Limited,R4000-SPP002,Equipment Purchase,03/07/2015,960.00
http://statistics.data.gov.uk/id/local-authority-district/23UB,Cheltenham Borough Council,Community Alarms,14037997,3in/10263458,Tunstall Healthcare (UK) Limited,R4000-SPP002,Equipment Purchase,03/07/2015,3914.94
http://statistics.data.gov.uk/id/local-authority-district/23UB,Cheltenham Borough Council,Public Conveniences,14037949,60005878,Ubico Limited,R5001-REG019,TPP - Major External Contractors,03/07/2015,6239.17
http://statistics.data.gov.uk/id/local-authority-district/23UB,Cheltenham Borough Council,Public Conveniences,14038611,60006140,Ubico Limited,R5001-REG019,TPP - Major External Contractors,31/07/2015,6239.17
http://statistics.data.gov.uk/id/local-authority-district/23UB,Cheltenham Borough Council,Bring Sites,14037949,60005878,Ubico Limited,R5001-RYC005,TPP - Major External Contractors,03/07/2015,11303.33
http://statistics.data.gov.uk/id/local-authority-district/23UB,Cheltenham Borough Council,Bring Sites,14038611,60006140,Ubico Limited,R5001-RYC005,TPP - Major External Contractors,31/07/2015,11303.33
http://statistics.data.gov.uk/id/local-authority-district/23UB,Cheltenham Borough Council,Arle Road Nursery Operations,14037949,60005878,Ubico Limited,R5001-OPS101,TPP - Major External Contractors,03/07/2015,14624.17
http://statistics.data.gov.uk/id/local-authority-district/23UB,Cheltenham Borough Council,Arle Road Nursery Operations,14038611,60006140,Ubico Limited,R5001-OPS101,TPP - Major External Contractors,31/07/2015,14624.17
http://statistics.data.gov.uk/id/local-authority-district/23UB,Cheltenham Borough Council,Highways Agency Verges & Trees,14037949,60005878,Ubico Limited,R5001-ESR001,TPP - Major External Contractors,03/07/2015,23720.83
http://statistics.data.gov.uk/id/local-authority-district/23UB,Cheltenham Borough Council,Highways Agency Verges & Trees,14038611,60006140,Ubico Limited,R5001-ESR001,TPP - Major External Contractors,31/07/2015,23720.83
http://statistics.data.gov.uk/id/local-authority-district/23UB,Cheltenham Borough Council,Green Waste,14037949,60005878,Ubico Limited,R5001-RYC002,TPP - Major External Contractors,03/07/2015,25513.33
http://statistics.data.gov.uk/id/local-authority-district/23UB,Cheltenham Borough Council,Green Waste,14038611,60006140,Ubico Limited,R5001-RYC002,TPP - Major External Contractors,31/07/2015,25513.33
http://statistics.data.gov.uk/id/local-authority-district/23UB,Cheltenham Borough Council,Supervision and Management,14037949,60005878,Ubico Limited,R2071-HRA110,Open Spaces and Grassed Areas,03/07/2015,27755.67
http://statistics.data.gov.uk/id/local-authority-district/23UB,Cheltenham Borough Council,Supervision and Management,14038611,60006140,Ubico Limited,R2071-HRA110,Open Spaces and Grassed Areas,31/07/2015,27755.67
http://statistics.data.gov.uk/id/local-authority-district/23UB,Cheltenham Borough Council,Parks & Gardens Operations,14037949,60005878,Ubico Limited,R5001-OPS001,TPP - Major External Contractors,03/07/2015,43088.33
http://statistics.data.gov.uk/id/local-authority-district/23UB,Cheltenham Borough Council,Parks & Gardens Operations,14038611,60006140,Ubico Limited,R5001-OPS001,TPP - Major External Contractors,31/07/2015,43088.33
http://statistics.data.gov.uk/id/local-authority-district/23UB,Cheltenham Borough Council,Recycling Centres,14037949,60005878,Ubico Limited,R5001-RYC004,TPP - Major External Contractors,03/07/2015,43681.67
http://statistics.data.gov.uk/id/local-authority-district/23UB,Cheltenham Borough Council,Recycling Centres,14038611,60006140,Ubico Limited,R5001-RYC004,TPP - Major External Contractors,31/07/2015,43681.67
http://statistics.data.gov.uk/id/local-authority-district/23UB,Cheltenham Borough Council,Trade Waste,14037949,60005878,Ubico Limited,R5001-TRW001,TPP - Major External Contractors,03/07/2015,43815.00
http://statistics.data.gov.uk/id/local-authority-district/23UB,Cheltenham Borough Council,Trade Waste,14038611,60006140,Ubico Limited,R5001-TRW001,TPP - Major External Contractors,31/07/2015,43815.00
http://statistics.data.gov.uk/id/local-authority-district/23UB,Cheltenham Borough Council,Parks & Gardens Operations,14037949,60005878,Ubico Limited,R5001-OPS001,TPP - Major External Contractors,03/07/2015,49405.83
http://statistics.data.gov.uk/id/local-authority-district/23UB,Cheltenham Borough Council,Sports & Open Spaces Operations,14038611,60006140,Ubico Limited,R5001-OPS002,TPP - Major External Contractors,31/07/2015,49405.83
http://statistics.data.gov.uk/id/local-authority-district/23UB,Cheltenham Borough Council,Street Cleaning,14037949,60005878,Ubico Limited,R5001-STC001,TPP - Major External Contractors,03/07/2015,76410.00
http://statistics.data.gov.uk/id/local-authority-district/23UB,Cheltenham Borough Council,Street Cleaning,14038611,60006140,Ubico Limited,R5001-STC001,TPP - Major External Contractors,31/07/2015,76410.00
http://statistics.data.gov.uk/id/local-authority-district/23UB,Cheltenham Borough Council,Household Waste,14037949,60005878,Ubico Limited,R5001-WST001,TPP - Major External Contractors,03/07/2015,100665.00
http://statistics.data.gov.uk/id/local-authority-district/23UB,Cheltenham Borough Council,Household Waste,14038611,60006140,Ubico Limited,R5001-WST001,TPP - Major External Contractors,31/07/2015,100665.00
http://statistics.data.gov.uk/id/local-authority-district/23UB,Cheltenham Borough Council,Recycling Collection Schemes,14037949,60005878,Ubico Limited,R5001-RYC006,TPP - Major External Contractors,03/07/2015,115078.33
http://statistics.data.gov.uk/id/local-authority-district/23UB,Cheltenham Borough Council,Recycling Collection Schemes,14038611,60006140,Ubico Limited,R5001-RYC006,TPP - Major External Contractors,31/07/2015,115078.33
http://statistics.data.gov.uk/id/local-authority-district/23UB,Cheltenham Borough Council,GO ICT Centre of Excellence,14038559,12053712,Unit4 Business Software,R4539-SUP101,IT - Consultancy,24/07/2015,5500.00
http://statistics.data.gov.uk/id/local-authority-district/23UB,Cheltenham Borough Council,GO ICT Centre of Excellence,14038253,12053414,Unit4 Business Software,R4539-SUP101,IT - Consultancy,17/07/2015,2500.00
http://statistics.data.gov.uk/id/local-authority-district/23UB,Cheltenham Borough Council,Joint Core Strategy,14038090,5,Urban Development & Transport Limited,R4400-PLP101,Services - Professional Fees,10/07/2015,19175.00
http://statistics.data.gov.uk/id/local-authority-district/23UB,Cheltenham Borough Council,Homelessness,14038021,Homlessness Prevention (REDACTED),REDACTED,R6280-HOM001,Grants,03/07/2015,600.00
http://statistics.data.gov.uk/id/local-authority-district/23UB,Cheltenham Borough Council,Car Parks - Off Street Operations,14036640,CHL00216,Verrus (UK) Limited (Pay By Phone),R4401-CPK001,Services - Fees and Charges,10/07/2015,1647.32
http://statistics.data.gov.uk/id/local-authority-district/23UB,Cheltenham Borough Council,Car Parks - Off Street Operations,14038449,CHL00220,Verrus (UK) Limited (Pay By Phone),R4410-CPK001,Hire of Facilities,24/07/2015,1810.34
http://statistics.data.gov.uk/id/local-authority-district/23UB,Cheltenham Borough Council,Car Parks - Off Street Operations,14036641,CHL00218,Verrus (UK) Limited (Pay By Phone),R4401-CPK001,Services - Fees and Charges,10/07/2015,1847.37
http://statistics.data.gov.uk/id/local-authority-district/23UB,Cheltenham Borough Council,Car Parks - Off Street Operations,14038448,CHL00222,Verrus (UK) Limited (Pay By Phone),R4410-CPK001,Hire of Facilities,24/07/2015,1966.50
http://statistics.data.gov.uk/id/local-authority-district/23UB,Cheltenham Borough Council,ICT,14038550,511341401/0715,Virgin Media Business,R4548-SUP005,IT - Cabling and Network,31/07/2015,7110.00
http://statistics.data.gov.uk/id/local-authority-district/23UB,Cheltenham Borough Council,Bulky Household Waste,14038563,13/15,Vision 21,R4401-WST004,Services - Fees and Charges,31/07/2015,3725.00
http://statistics.data.gov.uk/id/local-authority-district/23UB,Cheltenham Borough Council,Bulky Household Waste,14038564,14/15,Vision 21,R4401-WST004,Services - Fees and Charges,31/07/2015,3137.50
http://statistics.data.gov.uk/id/local-authority-district/23UB,Cheltenham Borough Council,Bulky Household Waste,14038565,15/15,Vision 21,R4401-WST004,Services - Fees and Charges,31/07/2015,3412.50
http://statistics.data.gov.uk/id/local-authority-district/23UB,Cheltenham Borough Council,Repairs and Maintenance,14038888,2238,West Midlands Services Limited,R2045-HRA100,R & M of Build Door Entry,31/07/2015,2647.72
http://statistics.data.gov.uk/id/local-authority-district/23UB,Cheltenham Borough Council,Car Parks - Off Street Operations,10016236,direct debit payment,SOUTHERN ELECTRIC - REGENT ARCADE CP,R2100-CPK001,Electricity,24/07/2015,537.27
http://statistics.data.gov.uk/id/local-authority-district/23UB,Cheltenham Borough Council,Town Hall Operations,10016236,direct debit payment,ARCHANT,R4317-CUL102,Non Staff Advertising,20/07/2015,1275.00
http://statistics.data.gov.uk/id/local-authority-district/23UB,Cheltenham Borough Council,Car Parks - Off Street Operations,10016236,direct debit payment,BARCLAYS MERCH CHG,R9352-CPK001,Car Park Fees,10/07/2015,2037.04
http://statistics.data.gov.uk/id/local-authority-district/23UB,Cheltenham Borough Council,Treasury Management,10016236,direct debit payment,LLOYDS CARDNET SVC CHG,R4428-COR006,Services - credit card charges,14/07/2015,1967.76
http://statistics.data.gov.uk/id/local-authority-district/23UB,Cheltenham Borough Council,Treasury Management,10016236,direct debit payment,LLOYDS CARDNET SVC CHG,R4428-COR006,Services - credit card charges,14/07/2015,830.34
http://statistics.data.gov.uk/id/local-authority-district/23UB,Cheltenham Borough Council,Treasury Management,10016236,direct debit payment,LLOYDS CARDNET SVC CHG,R4428-COR006,Services - credit card charges,14/07/2015,1452.01
http://statistics.data.gov.uk/id/local-authority-district/23UB,Cheltenham Borough Council,Art Gallery & Museum Repairs & Maintenance,10016236,direct debit payment,E.ON - AGM,R2100-CUL117,Electricity,16/07/2015,2899.41
http://statistics.data.gov.uk/id/local-authority-district/23UB,Cheltenham Borough Council,Cheltenham Depot,10016236,direct debit payment,E.ON - CENTRAL DEPOT,R2100-ADB103,Electricity,16/07/2015,2113.67
http://statistics.data.gov.uk/id/local-authority-district/23UB,Cheltenham Borough Council,Cheltenham Municipal Offices,10016236,direct debit payment,E.ON - MO,R2100-ADB101,Electricity,16/07/2015,4086.98
http://statistics.data.gov.uk/id/local-authority-district/23UB,Cheltenham Borough Council,Recreation Centre Repairs & Maintenance,10016236,direct debit payment,E.ON - REC CENTRE,R2100-REC111,Electricity,16/07/2015,3003.95
http://statistics.data.gov.uk/id/local-authority-district/23UB,Cheltenham Borough Council,Recreation Centre Repairs & Maintenance,10016236,direct debit payment,E.ON - SWIMMING POOL,R2100-REC111,Electricity,16/07/2015,1955.67
http://statistics.data.gov.uk/id/local-authority-district/23UB,Cheltenham Borough Council,Town Hall Repairs & Maintenance,10016236,direct debit payment,E.ON - TH,R2100-CUL112,Electricity,16/07/2015,3278.53
http://statistics.data.gov.uk/id/local-authority-district/23UB,Cheltenham Borough Council,Treasury Management,10016236,direct debit payment,LLOYDS BANK HOCA CHGS - JUNE,R4403-COR006,Bank Charges,28/07/2015,670.45
http://statistics.data.gov.uk/id/local-authority-district/23UB,Cheltenham Borough Council,Treasury Management,10016236,direct debit payment,LLOYDS CARDNET SVC CHG,R4403-COR006,Bank Charges,28/07/2015,1768.64
http://statistics.data.gov.uk/id/local-authority-district/23UB,Cheltenham Borough Council,Treasury Management,10016236,direct debit payment,PWLB Loan 504265/67 -Fees,R4447-COR006,Brokerage Fees,23/07/2015,1137.50
http://statistics.data.gov.uk/id/local-authority-district/23UB,Cheltenham Borough Council,Cheltenham Depot,10016236,direct debit payment,SEVERN TRENT WATER,R2401-ADB103,Water Services - Metered,24/07/2015,886.90
http://statistics.data.gov.uk/id/local-authority-district/23UB,Cheltenham Borough Council,Cheltenham Depot,10016236,direct debit payment,SEVERN TRENT WATER,R2402-ADB103,Sewerage and Environmental Services,24/07/2015,1279.01
http://statistics.data.gov.uk/id/local-authority-district/23UB,Cheltenham Borough Council,Recreation Centre Repairs & Maintenance,10016236,direct debit payment,SEVERN TRENT WATER,R2401-REC111,Water Services - Metered,24/07/2015,2899.89
http://statistics.data.gov.uk/id/local-authority-district/23UB,Cheltenham Borough Council,Car Parks - Off Street Operations,10016236,direct debit payment,SEVERN TRENT WATER,R2402-CPK001,Sewerage and Environmental Services,24/07/2015,683.62
http://statistics.data.gov.uk/id/local-authority-district/23UB,Cheltenham Borough Council,Supervision and Management,10016236,direct debit payment,SOUTHERN ELECTRIC,R2100-HRA110,Electricity,02/07/2015,2318.62
http://statistics.data.gov.uk/id/local-authority-district/23UB,Cheltenham Borough Council,Art Gallery & Museum Repairs & Maintenance,10016236,direct debit payment,SOUTHERN ELECTRIC - AGM,R2100-CUL117,Electricity,24/07/2015,1982.94
http://statistics.data.gov.uk/id/local-authority-district/23UB,Cheltenham Borough Council,Arle Road Nursery Operations,10016236,direct debit payment,SOUTHERN ELECTRIC - ARLE NURSERIES,R2100-OPS101,Electricity,24/07/2015,588.87
http://statistics.data.gov.uk/id/local-authority-district/23UB,Cheltenham Borough Council,"Cemetery, Crematorium and Churchyards",10016236,direct debit payment,SOUTHERN ELECTRIC - CEM & CREM,R2100-CCM001,Electricity,24/07/2015,595.49
http://statistics.data.gov.uk/id/local-authority-district/23UB,Cheltenham Borough Council,Car Parks - Off Street Operations,10016236,direct debit payment,SOUTHERN ELECTRIC - GROSVENOR TCE CP,R2100-CPK001,Electricity,24/07/2015,855.65
http://statistics.data.gov.uk/id/local-authority-district/23UB,Cheltenham Borough Council,Sports & Open Spaces Operations,10016236,direct debit payment,SOUTHERN ELECTRIC - KING GEORGE V PAV,R2100-OPS002,Electricity,24/07/2015,1118.79
http://statistics.data.gov.uk/id/local-authority-district/23UB,Cheltenham Borough Council,Pittville Pump Room Repairs & Maintenance,10016236,direct debit payment,SOUTHERN ELECTRIC - PITTVILLE PUMP ROOMS,R2100-CUL113,Electricity,24/07/2015,667.93
http://statistics.data.gov.uk/id/local-authority-district/23UB,Cheltenham Borough Council,Land & Property presale costs,10016236,direct debit payment,Stamp Duty ,C1001-CAP401,Acquisition Of Buildings,08/07/2015,550000.00
http://statistics.data.gov.uk/id/local-authority-district/23UB,Cheltenham Borough Council,Telephones,10016236,direct debit payment,VIRGIN MEDIA,R4505-SUP006,Comms - Telephone Call charges (Expense claims),01/07/2015,1820.47
http://statistics.data.gov.uk/id/local-authority-district/23UB,Cheltenham Borough Council,Telephones,10016236,direct debit payment,VIRGIN MEDIA,R4504-SUP006,Comms - Telephone Rental (Expense claims),01/07/2015,2015.04
http://statistics.data.gov.uk/id/local-authority-district/23UB,Cheltenham Borough Council,Car Parks - Off Street Operations,10016236,direct debit payment,WORLDPAY,R4428-CPK001,Services - credit card charges,21/07/2015,2425.64
http://statistics.data.gov.uk/id/local-authority-district/23UB,Cheltenham Borough Council,Council Tax Collection,10016249,Procurement card,HM COURTS,R4420-LTC001,Legal Expenses and court fees,01/08/2015,3858.00
http://statistics.data.gov.uk/id/local-authority-district/23UB,Cheltenham Borough Council,Built Environment ,10016249,Procurement card,charge card - training expenses,R1650-SUP040,Traing fees,01/07/2015,700.00
